bitfinex/quotes_BTCUSD_20240721
["timestamp","ask_amount","ask_price","bid_price","bid_amount"]
[1721555568802,0.00018006,67093.0,67092.0,2.81353249]
[1721555571490,0.00018006,67093.0,67092.0,2.81353087]
[1721555574624,0.00018006,67093.0,67092.0,2.81352925]
[1721555575672,0.00102006,67093.0,67092.0,2.81352925]
[1721555577820,0.00102006,67093.0,67092.0,2.43453274]
[1721555578062,0.00102006,67093.0,67092.0,2.81352925]
[1721555578250,0.00102006,67093.0,67092.0,2.81352994]
[1721555578831,0.00102006,67093.0,67092.0,2.59982994]
[1721555579026,0.00102006,67093.0,67092.0,2.66952994]
[1721555580840,0.00102006,67093.0,67092.0,2.66955134]
[1721555581813,0.00102006,67093.0,67092.0,2.59985134]
[1721555582078,0.13972006,67093.0,67092.0,2.16959534]
[1721555582240,0.13972006,67093.0,67092.0,2.40807334]
[1721555583489,0.07802006,67093.0,67092.0,2.22248391]
[1721555583785,0.00102006,67093.0,67092.0,2.40807266]
[1721555586518,0.00102006,67093.0,67092.0,2.09875474]
[1721555586720,0.00102006,67093.0,67092.0,2.33836622]
[1721555587045,0.14262006,67093.0,67092.0,1.34958822]
[1721555587246,0.14262006,67093.0,67092.0,1.40150788]
[1721555587500,0.14262006,67093.0,67092.0,1.16400133]
[1721555588305,0.14262006,67093.0,67092.0,1.40152703]
[1721555589676,0.14262006,67093.0,67092.0,1.04027674]
[1721555589877,0.14262006,67093.0,67092.0,1.40154174]
[1721555591609,0.14262006,67093.0,67092.0,1.1640141]
[1721555592845,0.14262006,67093.0,67092.0,1.1540141]
[1721555593100,0.14262006,67093.0,67092.0,1.1560141]
[1721555593302,0.14262006,67093.0,67092.0,1.1440141]
[1721555593799,0.14262006,67093.0,67092.0,1.1530141]
[1721555594934,0.14262006,67093.0,67092.0,1.1550141]
[1721555595308,0.14262006,67093.0,67092.0,1.1530141]
[1721555596335,0.14262006,67093.0,67092.0,1.1620141]
[1721555600207,0.14262006,67093.0,67092.0,1.0620141]
[1721555600418,0.14262006,67093.0,67092.0,0.5153581]
[1721555600779,0.14262006,67093.0,67092.0,0.5063581]
[1721555601168,0.14262006,67093.0,67092.0,0.7448361]
[1721555601395,0.14262006,67093.0,67092.0,0.8235361]
[1721555602416,0.14262006,67093.0,67092.0,0.82354778]
[1721555605886,0.14262006,67093.0,67092.0,0.69979874]
[1721555606077,0.14262006,67093.0,67092.0,0.82354794]
[1721555609611,0.14262006,67093.0,67092.0,0.29613094]
[1721555609818,0.14262006,67093.0,67092.0,0.34613094]
[1721555609988,0.14262006,67093.0,67092.0,0.29613094]
[1721555610408,0.14262006,67093.0,67092.0,0.28713094]
[1721555610603,0.14262006,67093.0,67092.0,0.27813094]
[1721555610853,0.14262006,67093.0,67092.0,0.28013094]
[1721555611048,0.14262006,67093.0,67092.0,0.28213094]
[1721555611471,0.14262006,67093.0,67092.0,0.28013094]
[1721555612303,0.14262006,67093.0,67092.0,0.27814147]
[1721555612506,0.14262006,67093.0,67092.0,0.28214147]
[1721555612906,0.26185706,67093.0,67092.0,0.28214147]
[1721555613510,0.33573437,67093.0,67092.0,0.12775973]
[1721555613927,0.57420837,67093.0,67092.0,0.12775973]
[1721555614265,0.50033106,67093.0,67092.0,0.12775973]
[1721555614466,0.50033106,67093.0,67092.0,0.12776025]
[1721555615291,0.50033106,67093.0,67092.0,0.12776023]
[1721555617635,0.50033106,67093.0,67092.0,0.004]
[1721555617860,0.26185706,67093.0,67092.0,0.004]
[1721555618265,0.33573577,67093.0,67092.0,0.1277609]
[1721555618463,0.33573577,67093.0,67092.0,0.004]
[1721555618738,0.57420977,67093.0,67092.0,0.004]
[1721555619477,0.33573577,67093.0,67092.0,0.004]
[1721555621515,0.57420977,67093.0,67092.0,0.004]
[1721555621723,0.50033106,67093.0,67092.0,0.004]
[1721555623975,0.50033106,67093.0,67092.0,0.12776116]
[1721555624308,0.50033106,67093.0,67092.0,0.004]
[1721555625253,0.50033106,67093.0,67092.0,0.002]
[1721555625462,0.119241,67091.0,67089.0,0.000924]
[1721555625668,0.264141,67091.0,67090.0,0.12376232]
[1721555626838,0.268141,67091.0,67090.0,0.12376232]
[1721555627273,0.1489,67091.0,67090.0,0.12376232]
[1721555627402,0.0864,67091.0,67090.0,0.17376232]
[1721555628172,0.0844,67091.0,67090.0,0.17376232]
[1721555628373,0.0844,67091.0,67090.0,0.17375985]
[1721555628517,0.0844,67091.0,67090.0,0.05]
[1721555628518,0.0854,67091.0,67090.0,0.05]
[1721555628745,0.0834,67091.0,67090.0,0.17375999]
[1721555628946,0.0844,67091.0,67090.0,0.17375999]
[1721555629422,0.0844,67091.0,67090.0,0.17475999]
[1721555630308,0.0844,67091.0,67090.0,0.17575999]
[1721555631396,0.0844,67091.0,67090.0,0.12575995]
[1721555631794,0.0844,67091.0,67090.0,0.17575995]
[1721555633618,0.0844,67091.0,67090.0,0.29500195]
[1721555634242,0.0844,67091.0,67090.0,0.24500195]
[1721555634442,0.0844,67091.0,67090.0,0.29500195]
[1721555634673,0.0844,67091.0,67090.0,0.29499921]
[1721555637791,0.0844,67091.0,67090.0,0.2949989]
[1721555640769,0.0844,67091.0,67090.0,0.171242]
[1721555640964,0.0844,67091.0,67090.0,0.29499921]
[1721555641571,0.0844,67091.0,67090.0,0.24499921]
[1721555642959,0.1479,67091.0,67090.0,0.24499921]
[1721555643568,0.1479,67091.0,67090.0,0.24500257]
[1721555644473,0.1459,67091.0,67090.0,0.24400257]
[1721555644890,0.1459,67091.0,67090.0,0.24300257]
[1721555645097,0.1479,67091.0,67090.0,0.24300257]
[1721555645316,0.1489,67091.0,67090.0,0.24300257]
[1721555645722,0.1459,67091.0,67090.0,0.12376057]
[1721555645927,0.1459,67091.0,67090.0,0.12476057]
[1721555646173,0.1459,67091.0,67090.0,0.12576057]
[1721555646880,0.1459,67091.0,67090.0,0.002]
[1721555647071,0.1459,67091.0,67090.0,0.12576074]
[1721555649422,0.15494115,67091.0,67090.0,0.12576074]
[1721555650239,0.15494115,67091.0,67090.0,0.12576077]
[1721555653212,0.15494115,67091.0,67090.0,0.001]
[1721555653410,0.15694115,67091.0,67090.0,0.12476035]
[1721555654035,0.15694115,67091.0,67090.0,0.12376035]
[1721555654237,0.15894115,67091.0,67090.0,0.12376035]
[1721555654431,0.20367169,67091.0,67090.0,0.12376035]
[1721555654656,0.20167169,67091.0,67090.0,0.12376035]
[1721555654861,0.25152005,67091.0,67090.0,0.12376035]
[1721555655062,0.25352005,67091.0,67090.0,0.12376035]
[1721555655637,0.24952005,67091.0,67090.0,0.12376035]
[1721555655843,0.20478951,67091.0,67090.0,0.12376035]
[1721555656278,0.24753907,67091.0,67090.0,0.12376035]
[1721555656536,0.20278951,67091.0,67089.0,0.000924]
[1721555656672,0.24853839,67091.0,67090.0,0.12375992]
[1721555656878,0.20069003,67091.0,67090.0,0.12375992]
[1721555657284,0.20269003,67091.0,67090.0,0.12375992]
[1721555657710,0.20069003,67091.0,67090.0,0.12375992]
[1721555657926,0.20269003,67091.0,67090.0,0.12375992]
[1721555658142,0.19969003,67091.0,67090.0,0.12375992]
[1721555658522,0.36658785,67091.0,67090.0,0.12375992]
[1721555658844,0.55741303,67091.0,67090.0,0.12375992]
[1721555659906,0.55741303,67091.0,67089.0,0.000924]
[1721555659907,0.119242,67090.0,67089.0,0.000924]
[1721555660042,0.119242,67090.0,67089.0,0.12468333]
[1721555661100,0.119242,67090.0,67089.0,0.12568333]
[1721555661516,0.357727,67090.0,67089.0,0.12568333]
[1721555661717,0.94383662,67090.0,67089.0,0.12568333]
[1721555661915,0.90166467,67090.0,67089.0,0.12568333]
[1721555662127,0.90166467,67090.0,67089.0,0.001924]
[1721555662369,1.27433334,67090.0,67089.0,0.002924]
[1721555662972,1.27433347,67090.0,67089.0,0.001924]
[1721555663194,1.14214967,67090.0,67089.0,0.001924]
[1721555663363,1.14214967,67090.0,67089.0,0.000924]
[1721555663566,1.14414967,67090.0,67089.0,0.000924]
[1721555663771,1.14214967,67090.0,67089.0,0.000924]
[1721555664115,1.14214967,67090.0,67089.0,0.001924]
[1721555664319,1.14414967,67090.0,67089.0,0.002924]
[1721555664469,1.14414967,67090.0,67089.0,0.001924]
[1721555664877,1.14614967,67090.0,67089.0,0.001924]
[1721555665201,1.14414967,67090.0,67089.0,0.001924]
[1721555665427,1.14214967,67090.0,67089.0,0.000924]
[1721555665704,1.14414967,67090.0,67089.0,0.000924]
[1721555666224,1.45363141,67090.0,67089.0,0.000924]
[1721555666458,1.45563141,67090.0,67089.0,0.001924]
[1721555666646,1.45763141,67090.0,67089.0,0.002924]
[1721555667804,1.45363141,67090.0,67089.0,0.001924]
[1721555668225,1.45563141,67090.0,67089.0,0.002924]
[1721555668381,1.45563141,67090.0,67089.0,0.001924]
[1721555668382,1.69211641,67090.0,67089.0,0.001924]
[1721555668580,0.975209,67081.0,67080.0,0.000924]
[1721555668781,1.044909,67081.0,67080.0,0.000924]
[1721555669194,1.11187387,67081.0,67080.0,0.000924]
[1721555669595,1.11187387,67081.0,67080.0,0.141424]
[1721555669596,0.18622092,67081.0,67080.0,0.141424]
[1721555669800,0.04463897,67087.0,67086.0,0.119249]
[1721555670002,0.04863897,67090.0,67089.0,0.119244]
[1721555670209,0.04463897,67092.0,67090.0,0.119242]
[1721555670373,0.04463897,67092.0,67088.0,0.05]
[1721555670575,0.04565903,67093.0,67089.0,0.119244]
[1721555671702,0.16105253,67093.0,67089.0,0.119244]
[1721555672324,0.16305253,67093.0,67089.0,0.119244]
[1721555672721,0.004,67092.0,67089.0,0.119244]
[1721555672942,0.16304428,67093.0,67089.0,0.119244]
[1721555673343,0.16704428,67093.0,67089.0,0.119244]
[1721555673549,0.04513171,67092.0,67089.0,0.119244]
[1721555674087,0.04913171,67092.0,67089.0,0.119244]
[1721555674393,0.04513171,67092.0,67089.0,0.119244]
[1721555674834,0.04713171,67092.0,67089.0,0.119244]
[1721555675046,0.002,67092.0,67089.0,0.119244]
[1721555676794,0.005,67092.0,67089.0,0.119244]
[1721555677581,0.005,67092.0,67090.0,0.119242]
[1721555677962,0.005,67092.0,67091.0,0.119241]
[1721555678549,0.003,67092.0,67091.0,0.119241]
[1721555678749,0.005,67092.0,67091.0,0.119241]
[1721555679373,0.003,67092.0,67091.0,0.119241]
[1721555679572,0.00102006,67093.0,67091.0,0.119241]
[1721555679804,0.00102006,67093.0,67092.0,0.537817]
[1721555680117,0.00102006,67093.0,67092.0,0.855695]
[1721555681085,0.00402006,67093.0,67092.0,0.855695]
[1721555681646,0.00902006,67093.0,67092.0,0.855695]
[1721555687411,0.00902006,67093.0,67092.0,0.735995]
[1721555687619,0.00902006,67093.0,67092.0,0.785995]
[1721555687817,0.00902006,67093.0,67092.0,0.855695]
[1721555691488,0.00902006,67093.0,67092.0,0.656595]
[1721555692633,0.00714669,67093.0,67092.0,0.656595]
[1721555693027,0.00714669,67093.0,67092.0,0.706595]
[1721555693460,0.00714669,67093.0,67092.0,0.788595]
[1721555695433,0.00714669,67093.0,67092.0,0.858295]
[1721555698241,0.00714669,67093.0,67092.0,0.98204991]
[1721555702444,0.00714669,67093.0,67092.0,0.98204909]
[1721555702658,0.00714669,67093.0,67092.0,0.858295]
[1721555702859,0.00714669,67093.0,67092.0,0.98204909]
[1721555707442,0.00714669,67093.0,67092.0,0.62387109]
[1721555707645,0.00714669,67093.0,67092.0,0.54187109]
[1721555707980,0.00714669,67093.0,67092.0,0.48147109]
[1721555708221,0.00714669,67093.0,67092.0,0.12375409]
[1721555708222,0.51511236,67093.0,67092.0,0.12375409]
[1721555708444,0.74503169,67093.0,67092.0,0.12375409]
[1721555708644,0.119243,67090.0,67082.0,0.119256]
[1721555708844,0.119243,67090.0,67083.0,0.12376468]
[1721555709048,0.119243,67090.0,67084.0,0.12376468]
[1721555709255,0.119244,67089.0,67085.0,0.12376468]
[1721555709457,0.119244,67089.0,67086.0,0.12376468]
[1721555709746,0.119244,67089.0,67087.0,0.12376468]
[1721555709920,0.119244,67089.0,67088.0,0.12376468]
[1721555710559,0.004,67090.0,67088.0,0.12376468]
[1721555710790,0.004,67090.0,67089.0,0.12376468]
[1721555710996,0.002,67090.0,67089.0,0.12376468]
[1721555712201,0.119241,67091.0,67089.0,0.12376484]
[1721555712403,0.119241,67091.0,67090.0,0.12376484]
[1721555712990,0.357723,67091.0,67090.0,0.12376484]
[1721555713728,0.361723,67091.0,67090.0,0.12376484]
[1721555713848,0.0784,67093.0,67090.0,0.12376484]
[1721555714062,0.119237,67094.0,67091.0,0.12376484]
[1721555714304,0.16385421,67094.0,67092.0,0.12376484]
[1721555714504,0.04461721,67094.0,67089.0,0.001]
[1721555714714,0.119239,67092.0,67090.0,0.12376722]
[1721555714916,0.119239,67092.0,67091.0,0.12376722]
[1721555715644,0.119239,67092.0,67091.0,0.12376337]
[1721555716066,0.04967918,67093.0,67091.0,0.12376337]
[1721555716267,0.16891718,67093.0,67092.0,0.12376337]
[1721555716885,0.16391718,67093.0,67092.0,0.12376337]
[1721555717865,0.25809021,67093.0,67092.0,0.12376337]
[1721555718079,0.16391718,67093.0,67092.0,0.12376337]
[1721555718642,0.11924,67092.0,67088.0,0.0602]
[1721555718845,0.11924,67092.0,67089.0,0.123764]
[1721555719071,0.11924,67092.0,67088.0,0.0602]
[1721555719273,0.16392781,67092.0,67089.0,0.123764]
[1721555719472,0.16392781,67092.0,67090.0,0.123764]
[1721555719676,0.16392781,67092.0,67091.0,0.123764]
[1721555719896,0.17292781,67092.0,67091.0,0.123764]
[1721555720517,0.17792781,67092.0,67091.0,0.123764]
[1721555721097,0.17392781,67092.0,67091.0,0.123764]
[1721555721792,0.16394208,67092.0,67091.0,0.123764]
[1721555721969,0.16894208,67092.0,67091.0,0.123764]
[1721555722217,0.12424,67092.0,67091.0,0.123764]
[1721555722618,0.12824,67092.0,67091.0,0.123764]
[1721555722985,0.12424,67092.0,67091.0,0.123764]
[1721555723182,0.19129312,67092.0,67091.0,0.123764]
[1721555723387,0.12824,67092.0,67091.0,0.123764]
[1721555724220,0.19532392,67092.0,67088.0,0.0602]
[1721555724421,0.19532392,67092.0,67089.0,0.123764]
[1721555724422,0.04472045,67090.0,67089.0,0.123764]
[1721555724827,0.04472045,67090.0,67089.0,0.12321598]
[1721555725432,0.18271671,67090.0,67089.0,0.12321598]
[1721555725631,0.18471671,67090.0,67089.0,0.12321598]
[1721555726584,0.18471691,67090.0,67089.0,0.12321598]
[1721555726792,0.18671691,67090.0,67089.0,0.12321598]
[1721555727205,0.18471691,67090.0,67089.0,0.12321598]
[1721555727419,0.18671691,67090.0,67089.0,0.12321598]
[1721555727626,0.32643826,67090.0,67085.0,0.11925]
[1721555727833,0.04471941,67089.0,67085.0,0.11925]
[1721555728000,0.12221131,67089.0,67085.0,0.11925]
[1721555729213,0.0784919,67089.0,67085.0,0.11925]
[1721555730054,0.0794919,67089.0,67085.0,0.11925]
[1721555730803,0.1987369,67089.0,67083.0,0.119253]
[1721555731034,0.06139409,67088.0,67083.0,0.119253]
[1721555731463,0.06139409,67088.0,67084.0,0.119253]
[1721555732393,0.18064009,67088.0,67082.0,0.05]
[1721555732599,0.06139409,67088.0,67083.0,0.119253]
[1721555732818,0.06139409,67088.0,67084.0,0.12376786]
[1721555732993,0.06139409,67088.0,67085.0,0.12376786]
[1721555733193,0.07635616,67087.0,67086.0,0.12376786]
[1721555734121,0.07635616,67087.0,67083.0,0.119253]
[1721555734319,0.07635616,67087.0,67085.0,0.000924]
[1721555734524,0.07635616,67087.0,67086.0,0.12376786]
[1721555734906,0.119246,67088.0,67086.0,0.12376786]
[1721555735119,0.04471787,67088.0,67087.0,0.12376786]
[1721555736963,0.16396387,67088.0,67087.0,0.12376786]
[1721555737185,0.24641032,67088.0,67087.0,0.12376786]
[1721555737390,0.26881256,67088.0,67087.0,0.12376799]
[1721555738762,0.82879656,67088.0,67087.0,0.12376799]
[1721555738966,0.119249,67086.0,67085.0,0.000924]
[1721555739169,0.679247,67086.0,67085.0,0.000924]
[1721555739373,0.79106944,67086.0,67085.0,0.000924]
[1721555740200,0.79506944,67086.0,67085.0,0.000924]
[1721555740403,0.683247,67086.0,67085.0,0.000924]
[1721555740608,0.80337159,67086.0,67085.0,0.000924]
[1721555740808,0.72037159,67086.0,67085.0,0.000924]
[1721555741087,0.16883876,67086.0,67085.0,0.112324]
[1721555741286,0.004,67086.0,67085.0,0.112324]
[1721555741490,0.007,67086.0,67085.0,0.35534804]
[1721555741632,0.007,67086.0,67085.0,0.43314804]
[1721555741832,0.004,67086.0,67085.0,0.43314804]
[1721555742009,0.03652989,67086.0,67085.0,0.43314804]
[1721555742217,0.03552989,67086.0,67085.0,0.43314804]
[1721555742494,0.03952989,67086.0,67085.0,0.43314804]
[1721555742695,0.03652989,67086.0,67085.0,0.43314804]
[1721555743242,0.03852989,67086.0,67085.0,0.38314804]
[1721555743448,0.03852989,67086.0,67085.0,0.26389704]
[1721555743654,0.04052989,67086.0,67085.0,0.26389704]
[1721555743858,0.008,67086.0,67085.0,0.26389642]
[1721555747036,0.002,67086.0,67085.0,0.26389642]
[1721555747240,0.004,67086.0,67085.0,0.26389642]
[1721555748020,0.002,67086.0,67085.0,0.26389642]
[1721555748546,0.03433004,67086.0,67085.0,0.26389642]
[1721555748808,0.03633004,67086.0,67085.0,0.26389642]
[1721555749922,0.23275383,67086.0,67085.0,0.12469642]
[1721555750124,0.20029379,67086.0,67085.0,0.12469642]
[1721555750331,0.20029565,67086.0,67085.0,0.12469673]
[1721555750523,0.19829565,67086.0,67085.0,0.12469673]
[1721555751888,0.19629565,67086.0,67085.0,0.12469673]
[1721555752500,0.07804665,67086.0,67085.0,0.12469673]
[1721555752695,0.07904665,67086.0,67085.0,0.12469673]
[1721555753416,0.07904665,67086.0,67085.0,0.12469657]
[1721555753842,0.03433004,67086.0,67085.0,0.000924]
[1721555754114,0.03433004,67086.0,67085.0,0.12469397]
[1721555754316,0.07904764,67086.0,67085.0,0.12469397]
[1721555754516,0.03433004,67086.0,67085.0,0.12469397]
[1721555754645,0.07904764,67086.0,67085.0,0.12469397]
[1721555756187,0.03433004,67086.0,67085.0,0.12469397]
[1721555756386,0.07904764,67086.0,67085.0,0.12469397]
[1721555756590,0.03433004,67086.0,67085.0,0.000924]
[1721555756759,0.03433004,67086.0,67085.0,0.12469642]
[1721555757199,0.07905026,67086.0,67085.0,0.12469642]
[1721555757415,0.81339726,67086.0,67085.0,0.12469642]
[1721555759419,0.43679826,67086.0,67085.0,0.12469642]
[1721555759878,0.43679973,67086.0,67085.0,0.12469642]
[1721555760342,0.43629973,67086.0,67085.0,0.17469642]
[1721555760543,0.40446969,67086.0,67085.0,0.17469642]
[1721555761101,0.16597069,67086.0,67085.0,0.12469642]
[1721555761907,0.04672169,67086.0,67085.0,0.17469642]
[1721555762184,0.04672169,67086.0,67085.0,0.29394742]
[1721555762340,0.002,67086.0,67085.0,0.358678]
[1721555762541,0.002,67086.0,67085.0,0.48245138]
[1721555762542,0.04672186,67086.0,67085.0,0.48245138]
[1721555763643,0.04672186,67086.0,67085.0,0.53245138]
[1721555763828,0.07831116,67086.0,67085.0,0.53245138]
[1721555765684,0.07831247,67086.0,67085.0,0.53245138]
[1721555766065,0.04672317,67086.0,67085.0,0.48245138]
[1721555766288,0.04672317,67086.0,67085.0,0.53245138]
[1721555767750,0.04672317,67086.0,67085.0,0.48245138]
[1721555768775,0.002,67086.0,67085.0,0.48245139]
[1721555768985,0.04672502,67086.0,67085.0,0.48245139]
[1721555769212,0.04756502,67086.0,67085.0,0.48245139]
[1721555769418,0.00284,67086.0,67085.0,0.53245139]
[1721555769800,0.00284,67086.0,67085.0,0.48245139]
[1721555770203,0.00284,67086.0,67085.0,0.24394839]
[1721555771007,0.00284,67086.0,67085.0,0.29394839]
[1721555771888,0.00184,67086.0,67085.0,0.29394839]
[1721555772295,0.00284,67086.0,67085.0,0.29394839]
[1721555772537,0.00184,67086.0,67085.0,0.29394839]
[1721555772674,0.00284,67086.0,67085.0,0.29394839]
[1721555773704,0.00084,67086.0,67085.0,0.29394839]
[1721555773908,0.00184,67086.0,67085.0,0.29394839]
[1721555775441,0.00284,67086.0,67085.0,0.29394839]
[1721555776069,0.04757444,67086.0,67085.0,0.24394839]
[1721555776271,0.00284,67086.0,67085.0,0.29394839]
[1721555777467,0.06994281,67086.0,67085.0,0.29394839]
[1721555778472,0.00284,67086.0,67085.0,0.170175]
[1721555778671,0.06994839,67086.0,67085.0,0.29394839]
[1721555779893,0.06894839,67086.0,67085.0,0.29394839]
[1721555780517,0.06994839,67086.0,67085.0,0.29394839]
[1721555780694,0.06894839,67086.0,67085.0,0.24394839]
[1721555781295,0.06894839,67086.0,67085.0,0.29394839]
[1721555781982,0.00184,67086.0,67085.0,0.170175]
[1721555782224,0.06895368,67086.0,67085.0,0.29394839]
[1721555783058,0.06795368,67086.0,67085.0,0.29394839]
[1721555783462,0.06995368,67086.0,67085.0,0.29394839]
[1721555783666,0.06895368,67086.0,67085.0,0.29394839]
[1721555784057,0.06795368,67086.0,67085.0,0.29394839]
[1721555784906,0.06796,67086.0,67085.0,0.29394839]
[1721555785140,0.00084,67086.0,67085.0,0.29394839]
[1721555785349,0.00039,67086.0,67085.0,0.29394839]
[1721555786356,0.06751,67086.0,67085.0,0.29394839]
[1721555786719,0.0675296,67086.0,67085.0,0.29394839]
[1721555787889,0.0695296,67086.0,67085.0,0.29394839]
[1721555788118,0.0705296,67086.0,67085.0,0.29394839]
[1721555788325,0.0705296,67086.0,67085.0,0.170175]
[1721555788528,0.0685296,67086.0,67085.0,0.29394514]
[1721555791427,0.06852582,67086.0,67085.0,0.170175]
[1721555791626,0.06852582,67086.0,67085.0,0.29394503]
[1721555794043,0.00139,67086.0,67085.0,0.29394503]
[1721555794253,0.06852541,67086.0,67085.0,0.29394503]
[1721555794710,0.00139,67086.0,67085.0,0.29394916]
[1721555794932,0.00139,67086.0,67085.0,0.24394916]
[1721555795129,0.09090491,67086.0,67085.0,0.24394916]
[1721555796566,0.09290491,67086.0,67085.0,0.24394916]
[1721555796776,0.09190491,67086.0,67085.0,0.24394916]
[1721555796987,0.62364087,67086.0,67085.0,0.12469816]
[1721555797210,0.62364087,67086.0,67085.0,0.000924]
[1721555797211,1.01112396,67086.0,67085.0,0.000924]
[1721555797640,1.01312396,67086.0,67085.0,0.000924]
[1721555798691,1.14736919,67086.0,67085.0,0.000924]
[1721555799042,1.01312396,67086.0,67085.0,0.000924]
[1721555800290,1.01312396,67086.0,67085.0,0.00048324]
[1721555801606,0.980736,67086.0,67085.0,0.00048324]
[1721555801808,1.09249896,67086.0,67085.0,0.00048324]
[1721555802082,0.980736,67086.0,67085.0,0.00048324]
[1721555802524,1.09249274,67086.0,67085.0,0.00048324]
[1721555804079,0.00439,67086.0,67085.0,0.05048324]
[1721555804485,0.07143541,67086.0,67085.0,0.05048324]
[1721555805183,0.00439,67086.0,67085.0,0.05048324]
[1721555805384,0.067505,67086.0,67085.0,0.00048324]
[1721555805615,0.065505,67086.0,67085.0,0.00048324]
[1721555806050,0.067505,67086.0,67085.0,0.00048324]
[1721555806884,0.065505,67086.0,67085.0,0.00048324]
[1721555807101,0.067505,67086.0,67085.0,0.00048324]
[1721555807527,0.186754,67086.0,67085.0,0.00048324]
[1721555809212,0.663752,67086.0,67085.0,0.00048324]
[1721555810077,0.661752,67086.0,67085.0,0.00048324]
[1721555810364,0.663752,67086.0,67085.0,0.00048324]
[1721555810593,0.661752,67086.0,67085.0,0.00048324]
[1721555810778,0.663752,67086.0,67085.0,0.00048324]
[1721555814249,0.742752,67086.0,67085.0,0.00048324]
[1721555816780,0.663752,67086.0,67085.0,0.00048324]
[1721555821831,0.362138,67086.0,67085.0,0.00048324]
[1721555822844,0.19068745,67086.0,67085.0,0.00048324]
[1721555823661,0.19068745,67086.0,67085.0,0.05048324]
[1721555823895,0.19068745,67086.0,67085.0,0.00048324]
[1721555828744,0.07143845,67086.0,67085.0,0.00048324]
[1721555829258,0.07144236,67086.0,67085.0,0.00048324]
[1721555830458,0.07144236,67086.0,67085.0,0.43298624]
[1721555830661,0.00439,67086.0,67085.0,0.55223724]
[1721555831446,0.00439,67086.0,67085.0,0.67601427]
[1721555838676,0.00439,67086.0,67085.0,0.67601396]
[1721555840577,0.07145937,67086.0,67085.0,0.67601396]
[1721555841089,0.07145937,67086.0,67085.0,0.38751096]
[1721555841718,0.07145937,67086.0,67085.0,0.43751096]
[1721555841920,0.0714642,67086.0,67085.0,0.43751096]
[1721555842127,0.0714642,67086.0,67085.0,0.38751096]
[1721555844064,0.0714642,67086.0,67085.0,0.26825996]
[1721555844269,0.13458968,67086.0,67085.0,0.12425996]
[1721555844462,0.73083668,67086.0,67085.0,0.12425996]
[1721555845090,0.25384535,67086.0,67085.0,0.12425996]
[1721555846359,0.18676448,67086.0,67085.0,0.12425996]
[1721555847355,0.18676448,67086.0,67085.0,0.18445996]
[1721555847610,0.27623305,67086.0,67085.0,0.18445996]
[1721555848442,0.27626321,67086.0,67085.0,0.18445996]
[1721555848802,0.27626337,67086.0,67085.0,0.18445996]
[1721555849412,0.18676448,67086.0,67085.0,0.18445996]
[1721555850013,0.27627874,67086.0,67085.0,0.18445996]
[1721555851006,0.09390426,67086.0,67085.0,0.18445996]
[1721555851659,0.09389988,67086.0,67085.0,0.1844575]
[1721555852452,0.00439,67086.0,67085.0,0.1844575]
[1721555852653,0.09389988,67086.0,67085.0,0.1844575]
[1721555854891,0.09389793,67086.0,67085.0,0.1844575]
[1721555855727,0.18036251,67086.0,67085.0,0.1844575]
[1721555856122,0.17836251,67086.0,67085.0,0.1844575]
[1721555856333,0.08989793,67086.0,67085.0,0.18422826]
[1721555856568,0.09089793,67086.0,67085.0,0.18422826]
[1721555857008,0.09289793,67086.0,67085.0,0.18422826]
[1721555857452,0.09089793,67086.0,67085.0,0.18422826]
[1721555857708,0.21014693,67086.0,67085.0,0.18422826]
[1721555857954,0.21114693,67086.0,67085.0,0.18422826]
[1721555858206,0.21114693,67086.0,67085.0,0.18423162]
[1721555858207,0.121639,67086.0,67085.0,0.18423162]
[1721555858443,0.120639,67086.0,67085.0,0.18423162]
[1721555858639,0.21114799,67086.0,67085.0,0.18423162]
[1721555859092,0.21014799,67086.0,67085.0,0.18423162]
[1721555859630,0.21114799,67086.0,67085.0,0.18423162]
[1721555859866,0.21014799,67086.0,67085.0,0.18423162]
[1721555860106,0.20914799,67086.0,67085.0,0.18423162]
[1721555860588,0.86782968,67086.0,67085.0,0.12403162]
[1721555860835,0.77832069,67086.0,67085.0,0.12403162]
[1721555861033,0.77832069,67086.0,67085.0,0.000254]
[1721555861987,0.78132069,67086.0,67085.0,0.000254]
[1721555862454,0.78532069,67086.0,67085.0,0.000254]
[1721555863757,1.02381969,67086.0,67085.0,0.000254]
[1721555875924,1.33530143,67086.0,67085.0,0.000254]
[1721555876124,1.57380043,67086.0,67085.0,0.000254]
[1721555876324,1.59680043,67086.0,67085.0,0.000254]
[1721555880453,1.59680043,67086.0,67080.0,0.000924]
[1721555880454,1.138109,67081.0,67080.0,0.000924]
[1721555880735,1.29249074,67081.0,67080.0,0.000924]
[1721555881181,1.44953611,67081.0,67080.0,0.000924]
[1721555881383,1.31518868,67081.0,67080.0,0.000924]
[1721555882497,1.22689074,67081.0,67080.0,0.000924]
[1721555882701,1.39002898,67081.0,67080.0,0.001924]
[1721555883321,1.39702898,67081.0,67080.0,0.002924]
[1721555886394,1.16329074,67081.0,67080.0,0.002924]
[1721555889597,1.17217236,67081.0,67080.0,0.002924]
[1721555891314,1.25277236,67081.0,67080.0,0.002924]
[1721555891512,1.31837236,67081.0,67080.0,0.002924]
[1721555895369,1.34150944,67081.0,67080.0,0.002924]
[1721555895612,1.49585901,67081.0,67080.0,0.002924]
[1721555896011,1.47272193,67081.0,67080.0,0.002924]
[1721555896220,1.49586445,67081.0,67080.0,0.002924]
[1721555896424,1.51886445,67081.0,67080.0,0.002924]
[1721555898481,1.45326445,67081.0,67080.0,0.002924]
[1721555899394,1.45387356,67081.0,67080.0,0.002924]
[1721555902517,1.45421891,67081.0,67080.0,0.002924]
[1721555905817,1.45425339,67081.0,67080.0,0.002924]
[1721555906225,1.45417077,67081.0,67080.0,0.002924]
[1721555908107,1.45417077,67081.0,67080.0,0.143124]
[1721555908108,0.88473946,67081.0,67080.0,0.143124]
[1721555908324,0.62217362,67081.0,67080.0,0.143124]
[1721555908751,0.73386139,67081.0,67080.0,0.143124]
[1721555908950,0.62217362,67081.0,67080.0,0.143124]
[1721555909106,0.83105154,67081.0,67080.0,0.143124]
[1721555909737,0.71936438,67081.0,67080.0,0.143124]
[1721555911000,0.83107443,67081.0,67080.0,0.143124]
[1721555911201,0.71936438,67081.0,67080.0,0.143124]
[1721555911412,0.80873128,67081.0,67080.0,0.143124]
[1721555911813,0.83107301,67081.0,67080.0,0.143124]
[1721555912020,0.71936438,67081.0,67080.0,0.143124]
[1721555912432,0.83108165,67081.0,67080.0,0.143124]
[1721555913075,0.71936438,67081.0,67080.0,0.143124]
[1721555913477,0.83108165,67081.0,67080.0,0.143124]